fUST/lending_fUST_20260130
["ID","MTS","AMOUNT","RATE_DAILY","PERIOD"]
[404020770,1769736642182,-1249.95,0.00013698,2]
[404020771,1769736642191,-1249.95,0.00013698,2]
[404020772,1769736642200,-1249.95,0.00013698,2]
[404020773,1769736642211,-1249.95,0.00013698,2]
[404020774,1769736642221,-1249.95,0.00013698,2]
[404020775,1769736642231,-1250.15,0.00013698,2]
[404020776,1769736642241,-500.0,0.00013698,2]
[404020777,1769736642251,-500.0,0.00013698,2]
[404020778,1769736642260,-560.1692792,0.00013698,2]
[404020779,1769736642270,-1826.4679026,0.00013699,2]
[404020780,1769736642279,-1259.43065,0.00013699,2]
[404020781,1769736642288,-1000.0,0.00013699,2]
[404020782,1769736642297,-254.763607,0.00013699,2]
[404020783,1769736642307,-254.763607,0.00013699,2]
[404020784,1769736642316,-254.763607,0.00013699,2]
[404020785,1769736642325,-254.763607,0.00013699,2]
[404020786,1769736642336,-254.763607,0.00013699,2]
[404020787,1769736642345,-254.763607,0.00013699,2]
[404020788,1769736642355,-254.763607,0.00013699,2]
[404020789,1769736642363,-254.763607,0.00013699,2]
[404020790,1769736642372,-254.763607,0.00013699,2]
[404020791,1769736642381,-254.763607,0.00013699,2]
[404020792,1769736642391,-254.763607,0.00013699,2]
[404020793,1769736642400,-254.763607,0.00013699,2]
[404020794,1769736642409,-254.763607,0.00013699,2]
[404020795,1769736642418,-254.763607,0.00013699,2]
[404020796,1769736642427,-254.763607,0.00013699,2]
[404020797,1769736642437,-254.763607,0.00013699,2]
[404020798,1769736642446,-254.763607,0.00013699,2]
[404020799,1769736642455,-254.763607,0.00013699,2]
[404020800,1769736642464,-254.763607,0.00013699,2]
[404020801,1769736642474,-254.763612,0.00013699,2]
[404020802,1769736642483,-500.0,0.00013699,2]
[404020803,1769736642492,-500.0,0.00013699,2]
[404020804,1769736642501,-500.0,0.00013699,2]
[404020805,1769736642511,-500.0,0.00013699,2]
[404020806,1769736642521,-500.0,0.00013699,2]
[404020807,1769736642530,-500.0,0.00013699,2]
[404020808,1769736642539,-500.0,0.00013699,2]
[404020809,1769736642548,-500.0,0.00013699,2]
[404020810,1769736642557,-421.15705795,0.00013699,2]
[404020811,1769736642567,-196.39292364,0.00013699,2]
[404020812,1769736642576,-500.0,0.00013699,2]
[404020813,1769736642585,-500.0,0.00013699,2]
[404020814,1769736642594,-500.0,0.00013699,2]
[404020815,1769736642603,-500.0,0.00013699,2]
[404020816,1769736642612,-500.0,0.00013699,2]
[404020817,1769736642621,-500.0,0.00013699,2]
[404020818,1769736642631,-447.14757103,0.00013699,2]
[404020819,1769736642642,-500.0,0.00013699,2]
[404020820,1769736642651,-500.0,0.00013699,2]
[404020821,1769736642661,-500.0,0.00013699,2]
[404020822,1769736642671,-201.51331539,0.00013699,2]
[404020823,1769736642680,-500.0,0.00013699,2]
[404020824,1769736642689,-500.0,0.00013699,2]
[404020825,1769736642698,-500.0,0.00013699,2]
[404020826,1769736642707,-500.0,0.00013699,2]
[404020827,1769736642716,-500.0,0.00013699,2]
[404020828,1769736642726,-500.0,0.00013699,2]
[404020829,1769736642735,-500.0,0.00013699,2]
[404020830,1769736642745,-500.0,0.00013699,2]
[404020831,1769736642760,-500.0,0.00013699,2]
[404020832,1769736642769,-500.0,0.00013699,2]
[404020833,1769736642778,-500.0,0.00013699,2]
[404020834,1769736642787,-158.20788167,0.00013699,2]
[404020835,1769736642796,-500.0,0.00013699,2]
[404020836,1769736642807,-500.0,0.00013699,2]
[404020837,1769736642816,-500.0,0.00013699,2]
[404020838,1769736642826,-184.34582962,0.00013699,2]
[404020839,1769736642835,-500.0,0.00013699,2]
[404020840,1769736642843,-500.0,0.00013699,2]
[404020841,1769736642853,-500.0,0.00013699,2]
[404020842,1769736642862,-500.0,0.00013699,2]
[404020843,1769736642871,-500.0,0.00013699,2]
[404020844,1769736642881,-500.0,0.00013699,2]
[404020845,1769736642890,-500.0,0.00013699,2]
[404020846,1769736642899,-500.0,0.00013699,2]
[404020847,1769736642909,-500.0,0.00013699,2]
[404020848,1769736642919,-500.0,0.00013699,2]
[404020849,1769736642928,-500.0,0.00013699,2]
[404020850,1769736642937,-500.0,0.00013699,2]
[404020851,1769736642947,-500.0,0.00013699,2]
[404020852,1769736642956,-500.0,0.00013699,2]
[404020853,1769736642965,-500.0,0.00013699,2]
[404020854,1769736642975,-500.0,0.00013699,2]
[404020855,1769736642985,-500.0,0.00013699,2]
[404020856,1769736642995,-500.0,0.00013699,2]
[404020857,1769736643005,-500.0,0.00013699,2]
[404020858,1769736643014,-500.0,0.00013699,2]
[404020859,1769736643024,-500.0,0.00013699,2]
[404020860,1769736643033,-344.2469338,0.00013699,2]
[404020861,1769736643042,-500.0,0.00013699,2]
[404020862,1769736643051,-500.0,0.00013699,2]
[404020863,1769736643061,-279.9552372,0.00013699,2]
[404020864,1769736643070,-166.0,0.00013726,2]
[404020865,1769736643079,-166.0,0.00013726,2]
[404020866,1769736643088,-166.0,0.00013726,2]
[404020867,1769736643097,-166.0,0.00013726,2]
[404020868,1769736643106,-166.0,0.00013726,2]
[404020869,1769736643116,-166.0,0.00013726,2]
[404020870,1769736643124,-166.0,0.00013726,2]
[404020872,1769736643134,-169.56027628,0.00013726,2]
[404020873,1769736643143,-2623.2461015,0.00013726,2]
[404020874,1769736643153,-795.7238077,0.00013726,2]
[404020875,1769736643165,-200.0,0.00013771,2]
[404020876,1769736643175,-200.0,0.00013771,2]
[404020877,1769736643185,-151.0,0.000138,2]
[404020878,1769736643194,-151.0,0.000138,2]
[404020879,1769736643204,-595.37131296,0.00013802,2]
[404020880,1769736643214,-500.0,0.00013821,2]
[404020881,1769736643223,-478.61501959,0.00013821,2]
[404020883,1769736643233,-1000.0,0.00013821,2]
[404020884,1769736643243,-1000.0,0.00013821,2]
[404020885,1769736643253,-1000.0,0.00013821,2]
[404020886,1769736643262,-1000.0,0.00013821,2]
[404020887,1769736643271,-1000.0,0.00013821,2]
[404020888,1769736643280,-1000.0,0.00013821,2]
[404020889,1769736643289,-1000.0,0.00013821,2]
[404020890,1769736643298,-500.0,0.00013821,2]
[404020891,1769736643307,-500.0,0.00013821,2]
[404020892,1769736643316,-500.0,0.00013821,2]
[404020893,1769736643325,-1000.0,0.00013821,2]
[404020894,1769736643334,-1000.0,0.00013821,2]
[404020895,1769736643344,-500.0,0.00013821,2]
[404020896,1769736643354,-1000.0,0.00013821,2]
[404020897,1769736643363,-1000.0,0.00013821,2]
[404020898,1769736643372,-1000.0,0.00013821,2]
[404020899,1769736643382,-501.79501355,0.00013821,2]
[404020900,1769736643391,-1002.69705121,0.00013821,2]
[404020901,1769736643400,-151.0,0.00013821,2]
[404020902,1769736643410,-970.78602,0.00013844,2]
[404020903,1769736643419,-150.65,0.000139,2]
[404020904,1769736643428,-160.0,0.00013961,2]
[404020905,1769736643437,-167.59538682,0.00013973,2]
[404020906,1769736643447,-164.05815314,0.00013973,2]
[404020907,1769736643456,-720.0,0.00013984,2]
[404020908,1769736643466,-737.0,0.00014012,2]
[404020909,1769736643475,-270.57964877,0.00014064,2]
[404020910,1769736643484,-911.3435143,0.00014087,2]
[404020911,1769736643493,-475.620029,0.00014087,2]
[404020912,1769736643503,-1482.0527214,0.00014087,2]
[404020913,1769736643512,-35976.17910447,0.00014112,2]
[404020914,1769736643522,-241.0,0.00014123,2]
[404020915,1769736643531,-737.0,0.00014185,2]
[404020916,1769736643540,-585.3253227,0.00014197,2]
[404020917,1769736643549,-177.5499806,0.00014197,2]
[404020918,1769736643558,-151.0,0.000142,2]
[404020919,1769736643567,-151.0,0.000142,2]
[404020920,1769736643576,-2982.60894464,0.00014209,2]
[404020921,1769736643585,-737.0,0.00014218,2]
[404020922,1769736643595,-604.1333812,0.00014219,2]
[404020923,1769736643604,-600.0,0.00014221,2]
[404020924,1769736643613,-200.0,0.00014246,2]
[404020925,1769736643622,-200.0,0.00014246,2]
[404020926,1769736643631,-1000.0,0.00014247,2]
[404020927,1769736643640,-535.14506174,0.00014247,2]
[404020928,1769736643650,-1000.0,0.00014247,2]
[404020929,1769736643659,-1000.0,0.00014247,2]
[404020930,1769736643668,-1000.0,0.00014247,2]
[404020931,1769736643678,-1026.68040445,0.00014247,2]
[404020932,1769736643686,-381.06681578,0.00014247,2]
[404020933,1769736643695,-842.47496291,0.00014247,2]
[404020934,1769736643705,-1000.0,0.00014247,2]
[404020935,1769736643714,-1000.0,0.00014247,2]
[404020936,1769736643723,-1000.0,0.00014247,2]
[404020937,1769736643732,-1000.0,0.00014247,2]
[404020938,1769736643741,-1000.0,0.00014247,2]
[404020939,1769736643752,-667.69074235,0.00014247,2]
[404020940,1769736643771,-663.17755779,0.00014247,2]
[404020941,1769736643780,-1000.0,0.00014247,2]
[404020942,1769736643790,-1000.0,0.00014247,2]
[404020943,1769736643800,-630.15948281,0.00014247,2]
[404020944,1769736643810,-500.0,0.00014247,2]
[404020945,1769736643820,-1000.0,0.00014247,2]
[404020946,1769736643830,-1000.0,0.00014247,2]
[404020947,1769736643839,-1000.0,0.00014247,2]
[404020948,1769736643851,-1000.0,0.00014247,2]
[404020949,1769736643861,-1035.43445502,0.00014247,2]
[404020950,1769736643871,-1000.0,0.00014247,2]
[404020951,1769736643880,-528.91247927,0.00014247,2]
[404020952,1769736643888,-674.93397323,0.00014247,2]
[404020953,1769736643898,-1000.0,0.00014247,2]
[404020954,1769736643907,-1000.0,0.00014247,2]
[404020955,1769736643916,-571.27962246,0.00014247,2]
[404020956,1769736643925,-510.9310833,0.00014247,2]
[404020957,1769736643934,-1000.0,0.00014247,2]
[404020958,1769736643943,-1000.0,0.00014247,2]
[404020959,1769736643952,-1000.0,0.00014247,2]
[404020960,1769736643962,-500.0,0.00014247,2]
[404020961,1769736643972,-500.0,0.00014247,2]
[404020962,1769736643981,-500.0,0.00014247,2]
[404020963,1769736643990,-555.2647829,0.00014247,2]
[404020964,1769736644000,-1000.0,0.00014247,2]
[404020965,1769736644009,-448.14088715,0.00014247,2]
[404020966,1769736644019,-1000.0,0.00014247,2]
[404020967,1769736644027,-1000.0,0.00014247,2]
[404020968,1769736644037,-500.0,0.00014247,2]
[404020969,1769736644046,-531.66955229,0.00014247,2]
[404020970,1769736644055,-1000.0,0.00014247,2]
[404020971,1769736644064,-1000.0,0.00014247,2]
[404020972,1769736644074,-500.44842922,0.00014247,2]
[404020973,1769736644083,-1000.0,0.00014247,2]
[404020974,1769736644092,-1000.0,0.00014247,2]
[404020975,1769736644102,-1000.0,0.00014247,2]
[404020976,1769736644111,-616.62914,0.00014247,2]
[404020977,1769736644122,-616.62914,0.00014247,2]
[404020978,1769736644131,-616.62914,0.00014247,2]
[404020979,1769736644141,-616.62914,0.00014247,2]
[404020980,1769736644151,-229.229932,0.00014247,2]
[404020981,1769736644163,-737.0,0.00014271,2]
[404020988,1769736644262,-737.0,0.00014298,2]
[404020990,1769736644272,-185.4706062,0.00014305,2]
[404020992,1769736644282,-194.7135632,0.00014305,2]
[404020994,1769736644291,-737.0,0.00014317,2]
[404020996,1769736644301,-200.0,0.00014319,2]
[404020998,1769736644310,-214.05360635,0.00014319,2]
[404021000,1769736644320,-241.0,0.00014326,2]
[404021002,1769736644330,-617.40005154,0.0001435,2]
[404021004,1769736644338,-1500.0,0.00014368,2]
[404021006,1769736644348,-1500.0,0.00014368,2]
[404021008,1769736644357,-959.81748108,0.00014368,2]
[404021010,1769736644366,-1500.0,0.00014368,2]
[404021012,1769736644375,-1008.93652748,0.00014368,2]
[404021014,1769736644386,-1500.0,0.00014368,2]
[404021016,1769736644394,-1500.0,0.00014368,2]
[404021018,1769736644403,-1500.0,0.00014368,2]
[404021020,1769736644412,-1500.0,0.00014368,2]
[404021022,1769736644421,-468.40712194,0.00014368,2]
[404021024,1769736644431,-150.65,0.000144,2]
[404021026,1769736644442,-737.0,0.00014412,2]
[404021028,1769736644451,-737.0,0.00014447,2]
[404021030,1769736644460,-737.0,0.000145,2]
[404021032,1769736644469,-737.0,0.00014554,2]
[404021034,1769736644479,-151.0,0.000146,2]
[404021036,1769736644488,-151.0,0.000146,2]
[404021038,1769736644497,-737.0,0.00014626,2]
[404021040,1769736644506,-37307.29773133,0.0001466,2]
[404021042,1769736644516,-3092.96547559,0.00014757,2]
[404021044,1769736644525,-900.0,0.00014768,2]
[404021046,1769736644534,-737.0,0.00014785,2]
[404021048,1769736644543,-500.0,0.00014795,2]
[404021050,1769736644552,-500.0,0.00014795,2]
[404021051,1769736644562,-500.0,0.00014795,2]
[404021053,1769736644571,-500.0,0.00014795,2]
[404021055,1769736644579,-428.77477755,0.00014795,2]
[404021057,1769736644588,-500.0,0.00014795,2]
[404021060,1769736644599,-500.0,0.00014795,2]
[404021062,1769736644608,-500.0,0.00014795,2]
[404021064,1769736644619,-500.0,0.00014795,2]
[404021066,1769736644629,-540.55384637,0.00014795,2]
[404021067,1769736644639,-242.97231724,0.00014795,2]
[404021070,1769736644650,-500.0,0.00014795,2]
[404021072,1769736644659,-500.0,0.00014795,2]
[404021074,1769736644668,-500.0,0.00014795,2]
[404021076,1769736644678,-500.0,0.00014795,2]
[404021078,1769736644687,-457.15525942,0.00014795,2]
[404021079,1769736644696,-500.0,0.00014795,2]
[404021081,1769736644705,-500.0,0.00014795,2]
[404021083,1769736644714,-500.0,0.00014795,2]
[404021085,1769736644723,-500.0,0.00014795,2]
[404021087,1769736644740,-500.77607671,0.00014795,2]
[404021089,1769736644749,-500.83479814,0.00014795,2]
[404021091,1769736644759,-501.96549769,0.00014795,2]
[404021093,1769736644768,-737.0,0.00014851,2]
[404021095,1769736644777,-200.0,0.00014867,2]
[404021097,1769736644786,-241.0,0.00014898,2]
[404021099,1769736644796,-640.24385345,0.00014898,2]
[404021101,1769736644805,-150.65,0.000149,2]
[404021104,1769736644818,-455.16966791,0.000149,2]
[404021106,1769736644827,-455.16966791,0.000149,2]
[404021108,1769736644836,-455.16966791,0.000149,2]
[404021110,1769736644847,-500.0,0.00014916,2]
[404021112,1769736644856,-2000.0,0.00014916,2]
[404021114,1769736644866,-1500.0,0.00014916,2]
[404021116,1769736644875,-2000.0,0.00014916,2]
[404021118,1769736644884,-1500.0,0.00014916,2]
[404021120,1769736644894,-2000.0,0.00014916,2]
[404021122,1769736644902,-2000.0,0.00014916,2]
[404021124,1769736644912,-737.0,0.00014974,2]
[404021126,1769736644921,-151.0,0.00015,2]
[404021128,1769736644931,-187.526844,0.00015068,2]
[404021130,1769736644940,-151.0,0.00015068,2]
[404021132,1769736644949,-151.0,0.00015068,2]
[404021134,1769736644958,-151.0,0.00015068,2]
[404021136,1769736644967,-151.0,0.00015068,2]
[404021138,1769736644976,-151.0,0.00015068,2]
[404021140,1769736644986,-151.0,0.00015068,2]
[404021142,1769736644996,-151.0,0.00015068,2]
[404021144,1769736645006,-208.921519,0.00015068,2]
[404021145,1769736645015,-737.0,0.00015074,2]
[404021147,1769736645024,-737.0,0.00015079,2]
[404021149,1769736645033,-151.0,0.000151,2]
[404021151,1769736645043,-241.0,0.0001517,2]
[404021153,1769736645052,-38687.66774739,0.00015208,2]
[404021155,1769736645061,-737.0,0.00015226,2]
[404021157,1769736645070,-737.0,0.00015266,2]
[404021159,1769736645080,-241.0,0.000153,2]
[404021161,1769736645089,-3207.40519818,0.00015305,2]
[404021163,1769736645098,-602.97358892,0.00015316,2]
[404021165,1769736645107,-241.0,0.0001532,2]
[404021167,1769736645116,-911.3435143,0.00015323,2]
[404021169,1769736645125,-475.620029,0.00015323,2]
[404021171,1769736645134,-1482.0527214,0.00015323,2]
[404021173,1769736645143,-10000.0,0.00015342,2]
[404021175,1769736645152,-864.0,0.00015382,2]
[404021177,1769736645164,-241.0,0.00015389,2]
[404021179,1769736645178,-160.0,0.00015399,2]
[404021181,1769736645189,-200.0,0.00015399,2]
[404021183,1769736645198,-242.203318,0.000154,2]
[404021185,1769736645210,-150.65,0.000154,2]
[404021187,1769736645220,-616.62914,0.000154,2]
[404021189,1769736645229,-616.62914,0.000154,2]
[404021191,1769736645241,-616.62914,0.000154,2]
[404021193,1769736645250,-616.62914,0.000154,2]
[404021195,1769736645259,-67726.7470673,0.000154,2]
[404021197,1769736645268,-228.06268375,0.00015415,2]
[404021199,1769736645278,-630.0,0.0001543,2]
[404021201,1769736645287,-2150.0,0.0001543,2]
[404021203,1769736645297,-1369.0,0.0001543,2]
[404021205,1769736645306,-180.025,0.0001543,2]
[404021207,1769736645315,-452.484,0.0001543,2]
[404021209,1769736645325,-663.93287602,0.00015446,2]
[404021211,1769736645335,-500.0,0.00015464,2]
[404021213,1769736645344,-2500.0,0.00015464,2]
[404021215,1769736645353,-2000.0,0.00015464,2]
[404021217,1769736645362,-2500.0,0.00015464,2]
[404021219,1769736645372,-5000.0,0.0001564,2]
[404021221,1769736645381,-1041.66666667,0.00015668,2]
[404021223,1769736645390,-160.0,0.00015668,2]
[404021225,1769736645399,-40119.11145405,0.00015756,2]
[404021227,1769736645409,-3326.07919052,0.00015853,2]
[404021229,1769736645419,-150.65,0.000159,2]
[404021231,1769736645429,-688.49839244,0.00015994,2]
[404021233,1769736645438,-151.0,0.00016,2]
[404021235,1769736645447,-3000.0,0.00016012,2]
[404021237,1769736645456,-3000.0,0.00016012,2]
[404021239,1769736645466,-306.39166111,0.00016064,2]
[404021241,1769736645475,-18086.51693479,0.00016304,2]
[404021242,1769736645484,-150.65,0.000164,2]
[404021244,1769736645494,-3449.14412057,0.00016401,2]
[404021247,1769736645506,-165.13470443,0.00016437,2]
[404021248,1769736645515,-228.215795,0.00016438,7]
[404021250,1769736645525,-151.0,0.00016438,2]
[404021253,1769736645534,-155.31554479,0.00016438,2]
[404021255,1769736645544,-713.97283296,0.00016542,2]
[404021257,1769736645554,-1000.0,0.0001656,2]
[404021259,1769736645563,-3500.0,0.0001656,2]
[404021261,1769736645573,-301.0,0.00016875,2]
[404021263,1769736645582,-150.65,0.000169,2]
[404021265,1769736645593,-1000.0,0.00016921,2]
[404021267,1769736645602,-3576.76245303,0.00016949,2]
[404021269,1769736645611,-740.38982778,0.0001709,2]
[404021271,1769736645620,-1000.0,0.00017108,2]
[404021273,1769736645630,-150.0,0.00017168,2]
[404021275,1769736645639,-150.0,0.00017168,2]
[404021277,1769736645648,-150.0,0.00017168,2]
[404021279,1769736645657,-150.0,0.00017168,2]
[404021281,1769736645666,-150.65,0.000174,2]
[404021283,1769736645675,-3238.98516469,0.00017424,2]
[404021285,1769736645684,-29968.22034387,0.0001747,2]
[404021287,1769736645693,-3709.10266379,0.00017497,2]
[404021289,1769736645702,-767.7842514,0.00017638,2]
[404021291,1769736645711,-150.65,0.000179,2]
[404021293,1769736645721,-3846.33946235,0.00018045,2]
[404021295,1769736645730,-342.20367344,0.00018064,2]
[404021297,1769736645739,-437.24018261,0.00018186,2]
[404021299,1769736645749,-229.43752364,0.00018263,2]
[404021301,1769736645761,-150.65,0.000183,2]
[404021303,1769736645771,-1711.61658029,0.000183,3]
[404021305,1769736645780,-185.4706062,0.00018356,2]
[404021307,1769736645789,-810.132,0.0001843,2]
[404021309,1769736645799,-179.0,0.0001843,2]
[404021311,1769736645808,-418.0,0.0001843,2]
[404021313,1769736645817,-3988.65402246,0.00018593,2]
[404021315,1769736645827,-1000.0,0.00018613,2]
[404021317,1769736645835,-244.0,0.00018613,2]
[404021319,1769736645845,-1448.47077193,0.00018768,2]
[404021320,1769736645855,-150.65,0.000188,2]
[404021322,1769736645865,-303.10001603,0.000189,2]
[404021324,1769736645874,-303.10001603,0.000189,2]
[404021326,1769736645884,-303.10001603,0.00019089,2]
[404021328,1769736645893,-303.10001609,0.00019089,2]
[404021330,1769736645902,-616.62914,0.00019178,2]
[404021332,1769736645911,-616.62914,0.00019178,2]
[404021334,1769736645921,-616.62914,0.00019178,2]
[404021336,1769736645931,-616.62914,0.00019178,2]
[404021338,1769736645940,-151.0,0.00019178,2]
[404021340,1769736645949,-151.0,0.00019178,2]
[404021342,1769736645958,-151.0,0.00019178,2]
[404021344,1769736645967,-151.0,0.00019178,2]
[404021346,1769736645976,-151.0,0.00019178,2]
[404021348,1769736645986,-151.0,0.00019178,2]
[404021350,1769736645995,-151.0,0.00019178,2]
[404021352,1769736646005,-235.00013,0.00019178,2]
[404021354,1769736646014,-8717.35688,0.00019178,2]
[404021356,1769736646023,-8717.35688,0.00019178,2]
[404021358,1769736646032,-8717.35688,0.00019178,2]
[404021360,1769736646041,-8717.35688,0.00019178,2]
[404021362,1769736646051,-8717.35688,0.00019178,2]
[404021364,1769736646061,-8717.35688,0.00019178,2]
[404021366,1769736646070,-8717.35688,0.00019178,2]
[404021368,1769736646081,-8717.35688,0.00019178,2]
[404021370,1769736646090,-8717.35688,0.00019178,2]
[404021372,1769736646099,-8717.35688,0.00019178,2]
[404021374,1769736646110,-8717.35688,0.00019178,2]
[404021376,1769736646120,-8717.35688,0.00019178,2]
[404021378,1769736646129,-8717.35688,0.00019178,2]
[404021380,1769736646138,-8717.35688,0.00019178,2]
[404021382,1769736646147,-8717.35688,0.00019178,2]
[404021384,1769736646157,-8717.35688,0.00019178,2]
[404021386,1769736646170,-8717.35688,0.00019178,2]
[404021388,1769736646180,-8717.35688,0.00019178,2]
[404021390,1769736646189,-8717.35688,0.00019178,2]
[404021392,1769736646198,-8717.356886,0.00019178,2]
[404021394,1769736646209,-151.0,0.00019178,2]
[404021396,1769736646219,-151.0,0.00019178,2]
[404021398,1769736646230,-151.0,0.00019178,2]
[404021400,1769736646240,-151.0,0.00019178,2]
[404021402,1769736646249,-151.0,0.00019178,2]
[404021404,1769736646259,-151.0,0.00019178,2]
[404021407,1769736646269,-151.0,0.00019178,2]
[404021408,1769736646278,-151.0,0.00019178,2]
[404021410,1769736646288,-151.0,0.00019178,2]
[404021412,1769736646297,-151.0,0.00019178,2]
[404021414,1769736646306,-151.0,0.00019178,2]
[404021416,1769736646315,-246.88278808,0.00019178,2]
[404021418,1769736646324,-167.96,0.000192,2]
[404021420,1769736646333,-168.64,0.000192,2]
[404021422,1769736646343,-160.67,0.000192,2]
[404021434,1769736646433,-4018.96,0.000192,2]
[404021436,1769736646453,-1311.56660249,0.000192,2]
[404021455,1769736646588,-212.60339751,0.000192,2]
[404021459,1769736646597,-172.0,0.00019205,3]
[404021462,1769736646607,-303.10001603,0.00019278,2]
[404021465,1769736646616,-150.65,0.000193,2]
[404021467,1769736646625,-303.10001603,0.00019467,2]
[404021470,1769736646634,-500.0,0.00019528,2]
[404021473,1769736646643,-500.0,0.00019528,2]
[404021476,1769736646653,-303.100016,0.00019656,2]
[404021480,1769736646663,-150.65,0.000198,2]
[404021483,1769736646672,-4384.13762888,0.0002,7]
[404021486,1769736646685,-1692.96328763,0.0002,7]
[404021498,1769736646785,-378.7931414,0.00012,2]
[404021500,1769736646795,-1461.80104451,0.00013872,2]
[404021502,1769736646804,-6393.97016751,0.0002,7]
[404021504,1769736646815,-29860.92891598,0.0002,7]
[404021506,1769736646825,-1200.0,0.0002,2]
[404021508,1769736646834,-262.02883312,0.0002,7]
[404021510,1769736646843,-378.01568578,0.00020064,2]
[404021512,1769736646853,-150.0,0.00020168,2]
[404021514,1769736646862,-150.0,0.00020168,2]
[404021516,1769736646871,-150.65,0.000203,2]
[404021518,1769736646880,-200.0,0.00020311,3]
[404021520,1769736646890,-1000.0,0.00020474,2]
[404021522,1769736646898,-492.0,0.00020474,2]
[404021524,1769736646908,-1259.43065,0.00020548,2]
[404021526,1769736646917,-200.0,0.00020705,3]
[404021528,1769736646926,-200.0,0.00020726,3]
[404021530,1769736646935,-200.0,0.00020747,3]
[404021532,1769736646944,-150.65,0.000208,2]
[404021534,1769736646953,-3000.0,0.00021,2]
[404021536,1769736646962,-3000.0,0.0002101,2]
[404021538,1769736646971,-76.36534965,0.0002102,2]
[404021540,1769736646987,-280.70606371,0.0002102,2]
[404021543,1769736646999,-3018.92698364,0.0002102,2]
[404021545,1769736647009,-671.7580824,0.00021249,2]
[404021547,1769736647019,-778.77913156,0.00021249,2]
[404021813,1769736654308,2670.0,0.00034761,120]
[404021814,1769736655966,500.0,0.00034761,120]
[404021815,1769736656248,159.34290629,0.00034761,120]
[404021817,1769736674217,296.67564996,0.00034761,120]
[404021819,1769736682970,6970.0,0.00027397,120]
[404021820,1769736703686,157.47836494,0.00034761,120]
[404021821,1769736712382,215.90767244,0.00034761,120]
[404021822,1769736716093,150.62443474,0.00034761,120]
[404021823,1769736727545,205.34769635,0.00034761,120]
[404021829,1769736734372,157.58537985,0.00034761,120]
[404021830,1769736734747,156.43762123,0.00034761,120]
[404021834,1769736785492,267.01623216,0.00034742,120]
[404021835,1769736792116,167.09919317,0.00034742,120]
[404021836,1769736811540,174.36477583,0.00034742,120]
[404021837,1769736827978,238.80737133,0.00034742,120]
[404021838,1769736843546,155.79441086,0.00034742,120]
[404021839,1769736844354,295.44474843,0.00034742,120]
[404021840,1769736849008,155.42804008,0.00034742,120]
[404021846,1769736880401,294.29429159,0.00034742,120]
[404021848,1769736976176,154.56485828,0.00034742,120]
[404021851,1769737047591,500.0,0.00034708,120]
[404021852,1769737047979,500.0,0.00034708,120]
[404021853,1769737048677,500.0,0.00034708,120]
[404021854,1769737049041,500.0,0.00034708,120]
[404021855,1769737050483,500.0,0.00034708,120]
[404021856,1769737050844,500.0,0.00034708,120]
[404021857,1769737051199,500.0,0.00034708,120]
[404021858,1769737056630,500.0,0.00034708,120]
[404021859,1769737059094,500.0,0.00034708,120]
[404021860,1769737059413,500.0,0.00034708,120]
[404021861,1769737059730,500.0,0.00034708,120]
[404021862,1769737060396,513.02736788,0.00034708,120]
[404021866,1769737112784,11987.410843,0.00034708,120]